bitfinex/quotes_SOLUSD_20251103
["timestamp","ask_amount","ask_price","bid_price","bid_amount"]
[1762160284231,12.93,175.59,175.57,2.24287926]
[1762160284436,12.93,175.59,175.57,20.592]
[1762160284437,0.69,175.58,175.57,20.592]
[1762160284722,61.53690835,175.6,175.57,22.83487926]
[1762160284931,12.93,175.59,175.57,20.592]
[1762160285224,12.93,175.59,175.57,22.83487926]
[1762160286013,12.93,175.59,175.58,2.24287926]
[1762160286423,12.24,175.59,175.58,2.24287926]
[1762160286934,73.75690835,175.6,175.58,2.24287926]
[1762160287226,74.44690835,175.6,175.59,2.24287926]
[1762160287526,73.75690835,175.6,175.58,2.24287926]
[1762160287918,0.69,175.59,175.58,2.24287926]
[1762160288117,73.75690835,175.6,175.58,2.24287926]
[1762160288429,73.75690835,175.6,175.59,22.83487926]
[1762160288637,0.1,175.62,175.59,25.07775852]
[1762160288810,0.1,175.62,175.61,2.24287926]
[1762160291337,0.79,175.62,175.61,20.592]
[1762160292707,0.79,175.62,175.61,26.3033177]
[1762160292932,0.1,175.62,175.6,20.592]
[1762160293140,0.1,175.62,175.61,127.72014539]
[1762160293438,0.1,175.62,175.61,149.56834123]
[1762160293616,0.1,175.62,175.61,26.3033177]
[1762160295720,0.79,175.62,175.61,20.592]
[1762160296030,0.1,175.62,175.61,26.3033177]
[1762160296543,0.1,175.62,175.61,76.3033177]
[1762160296722,0.1,175.62,175.61,26.3033177]
[1762160296929,0.1,175.62,175.61,76.3033177]
[1762160297436,0.1,175.62,175.61,26.3033177]
[1762160297813,0.1,175.62,175.61,76.3033177]
[1762160298223,0.1,175.62,175.61,81.0560353]
[1762160298742,0.69,175.7,175.64,70.592]
[1762160298945,0.69,175.7,175.69,5.7113177]
[1762160300118,6.4013177,175.7,175.63,25.3447176]
[1762160300335,67.5113177,175.69,175.64,5.7113177]
[1762160300540,62.49,175.69,175.64,26.3033177]
[1762160300740,61.8,175.69,175.68,5.7113177]
[1762160301049,74.0,175.69,175.67,5.7113177]
[1762160301224,0.69,175.68,175.67,5.7113177]
[1762160301426,0.69,175.68,175.67,26.3033177]
[1762160301937,0.69,175.68,175.67,20.592]
[1762160302145,0.69,175.68,175.67,26.3033177]
[1762160302342,0.69,175.68,175.67,20.592]
[1762160302518,0.69,175.68,175.67,26.3033177]
[1762160303927,61.8,175.67,175.63,21.84722171]
[1762160304143,17.9113177,175.66,175.63,17.09450411]
[1762160304344,12.89,175.66,175.62,10.4640353]
[1762160304542,0.69,175.65,175.62,4.7527176]
[1762160304752,0.69,175.65,175.62,10.4640353]
[1762160305124,0.69,175.65,175.62,4.7527176]
[1762160305356,0.69,175.65,175.63,5.7113177]
[1762160305735,0.69,175.65,175.64,10.4640353]
[1762160305922,12.89,175.65,175.64,10.4640353]
[1762160306422,12.89,175.65,175.64,5.7113177]
[1762160308759,12.89,175.65,175.64,10.49527564]
[1762160309328,12.89,175.65,175.64,5.7113177]
[1762160310745,0.69,175.65,175.64,5.7113177]
[1762160310951,12.89,175.65,175.64,5.7113177]
[1762160312470,12.89,175.65,175.63,5.7113177]
[1762160312644,0.67,175.64,175.63,20.592]
[1762160313939,0.67,175.64,175.63,26.3033177]
[1762160314154,0.67,175.64,175.62,5.7113177]
[1762160314346,6.3813177,175.64,175.59,5.7113177]
[1762160314766,0.67,175.63,175.59,5.7113177]
[1762160315058,12.18,175.62,175.6,5.7113177]
[1762160315362,0.67,175.65,175.61,5.7113177]
[1762160315569,12.18,175.64,175.63,5.7113177]
[1762160316362,0.67,175.64,175.63,5.7113177]
[1762160317355,12.18,175.65,175.63,5.7113177]
[1762160317555,12.85,175.65,175.64,5.7113177]
[1762160318869,12.85,175.65,175.63,5.7113177]
[1762160319457,12.85,175.65,175.6,70.592]
[1762160319458,0.67,175.64,175.6,70.592]
[1762160319762,61.8,175.64,175.63,5.7113177]
[1762160320677,62.47,175.64,175.63,5.7113177]
[1762160321454,62.47,175.64,175.63,26.3033177]
[1762160322358,61.8,175.64,175.63,22.83399539]
[1762160323361,61.8,175.64,175.63,2.24199539]
[1762160324574,61.8,175.64,175.63,5.70673364]
[1762160325950,61.8,175.64,175.63,17.86673364]
[1762160326276,5.70673364,175.73,175.67,20.592]
[1762160326277,12.16,175.69,175.67,20.592]
[1762160326456,12.16,175.69,175.68,5.70673364]
[1762160326778,62.47,175.72,175.71,20.592]
[1762160327080,0.67,175.72,175.71,26.29873364]
[1762160327546,0.67,175.72,175.7,20.592]
[1762160327746,0.67,175.72,175.71,5.70673364]
[1762160327972,0.67,175.72,175.7,26.29873364]
[1762160328275,12.83,175.72,175.68,5.70673364]
[1762160328474,12.83,175.72,175.69,5.70673364]
[1762160328681,12.83,175.72,175.7,5.70673364]
[1762160328965,12.16,175.72,175.71,5.70673364]
[1762160329563,12.93,175.74,175.71,5.70673364]
[1762160329787,12.93,175.74,175.72,5.70673364]
[1762160329957,12.93,175.74,175.69,50.0]
[1762160329958,12.26,175.74,175.73,5.70673364]
[1762160330481,12.93,175.74,175.73,5.70673364]
[1762160331453,12.93,175.74,175.72,20.592]
[1762160331680,0.67,175.73,175.72,20.592]
[1762160332458,0.1,175.74,175.72,28.53637826]
[1762160332756,0.77,175.74,175.73,28.53637826]
[1762160333156,12.93,175.74,175.73,20.592]
[1762160333573,12.93,175.74,175.72,20.592]
[1762160333777,0.67,175.73,175.72,20.592]
[1762160334277,0.67,175.73,175.69,7.94437826]
[1762160334478,8.61437826,175.73,175.68,28.53637826]
[1762160334663,61.8,175.72,175.68,20.592]
[1762160334868,12.16,175.71,175.68,7.94437826]
[1762160335075,12.83,175.71,175.67,7.94437826]
[1762160335265,0.67,175.7,175.65,50.0]
[1762160335461,0.67,175.7,175.68,20.592]
[1762160337180,0.67,175.7,175.63,12.16]
[1762160337181,61.8,175.69,175.63,62.16]
[1762160337482,12.16,175.68,175.66,28.53637826]
[1762160337687,12.87,175.68,175.66,28.53637826]
[1762160337860,0.71,175.67,175.66,28.53637826]
[1762160338355,0.71,175.67,175.66,20.592]
[1762160340197,0.71,175.67,175.66,28.53637826]
[1762160340869,0.71,175.67,175.66,20.592]
[1762160341074,0.71,175.67,175.66,28.53637826]
[1762160341466,73.96,175.68,175.66,28.53637826]
[1762160341665,74.67,175.68,175.67,7.94437826]
[1762160341882,62.51,175.68,175.67,7.94437826]
[1762160342068,74.65,175.68,175.67,7.94437826]
[1762160342266,62.51,175.68,175.67,7.94437826]
[1762160342486,74.65,175.68,175.67,7.94437826]
[1762160342986,74.65,175.68,175.66,28.53637826]
[1762160343185,0.71,175.67,175.65,28.53637826]
[1762160343366,73.94,175.66,175.65,20.592]
[1762160343767,74.65,175.66,175.65,20.592]
[1762160343967,74.65,175.66,175.65,7.94437826]
[1762160345972,74.65,175.66,175.64,28.53637826]
[1762160346288,0.71,175.65,175.64,28.53637826]
[1762160346468,0.71,175.65,175.64,24.09483346]
[1762160347400,73.94,175.66,175.64,24.09483346]
[1762160347571,73.94,175.66,175.65,24.09483346]
[1762160348390,74.65,175.66,175.65,24.09483346]
[1762160349306,74.65,175.66,175.64,20.592]
[1762160349519,74.65,175.66,175.65,3.50283346]
[1762160349810,74.65,175.66,175.64,24.09483346]
[1762160349999,0.71,175.65,175.64,24.09483346]
[1762160350300,74.65,175.66,175.64,24.09483346]
[1762160350805,73.94,175.66,175.65,3.50283346]
[1762160350998,74.65,175.66,175.65,3.50283346]
[1762160351200,73.94,175.66,175.65,24.09483346]
[1762160357091,61.8,175.66,175.65,24.09483346]
[1762160357413,9.78882769,175.73,175.67,50.0]
[1762160357414,0.71,175.73,175.67,50.0]
[1762160357597,0.71,175.72,175.67,62.12]
[1762160357798,12.83,175.72,175.71,3.50283346]
[1762160358700,12.12,175.72,175.71,3.50283346]
[1762160358897,12.83,175.72,175.71,3.50283346]
[1762160359616,12.83,175.72,175.69,3.50283346]
[1762160359815,0.71,175.71,175.69,3.50283346]
[1762160360025,0.71,175.71,175.68,20.592]
[1762160360322,61.8,175.7,175.66,20.592]
[1762160360613,12.12,175.69,175.66,20.592]
[1762160360816,12.83,175.69,175.66,20.592]
[1762160361035,0.71,175.68,175.67,20.592]
[1762160361332,0.71,175.68,175.66,24.09483346]
[1762160363420,12.12,175.67,175.66,20.592]
[1762160363716,12.83,175.67,175.66,24.09483346]
[1762160364318,12.12,175.67,175.66,24.09483346]
[1762160366404,73.9,175.68,175.67,20.592]
[1762160366647,61.8,175.68,175.67,24.09483346]
[1762160366914,0.1,175.74,175.7,50.0]
[1762160367224,0.1,175.74,175.73,3.50283346]
[1762160370132,0.1,175.74,175.73,4.07188825]
[1762160371196,0.1,175.78,175.76,50.0]
[1762160371400,0.1,175.78,175.77,69.10566692]
[1762160372124,0.1,175.78,175.77,3.50283346]
[1762160372330,0.81,175.78,175.77,24.09483346]
[1762160372851,2.01283346,175.82,175.77,24.09483346]
[1762160373329,3.50283346,175.81,175.76,24.09483346]
[1762160373525,15.60283346,175.8,175.75,3.50283346]
[1762160373828,15.60283346,175.8,175.75,24.09483346]
[1762160374615,15.60283346,175.8,175.75,20.592]
[1762160374926,3.50283346,175.78,175.75,20.592]
[1762160375126,3.50283346,175.78,175.7,50.71]
[1762160375310,0.71,175.77,175.73,3.50283346]
[1762160375508,0.71,175.77,175.73,24.09483346]
[1762160376037,0.71,175.77,175.74,3.50283346]
[1762160376537,61.8,175.76,175.74,3.50283346]
[1762160376732,61.8,175.76,175.73,3.50283346]
[1762160376948,62.51,175.75,175.72,3.50283346]
[1762160377435,0.71,175.74,175.72,3.50283346]
[1762160378230,0.71,175.74,175.71,24.09483346]
[1762160378427,0.71,175.74,175.72,3.50283346]
[1762160380207,0.71,175.74,175.73,3.50283346]
[1762160381738,12.79,175.76,175.73,3.50283346]
[1762160381946,0.71,175.75,175.73,3.50283346]
[1762160382147,12.08,175.76,175.74,3.50283346]
[1762160382433,12.79,175.76,175.75,3.50283346]
[1762160383026,12.79,175.76,175.74,3.50283346]
[1762160384522,12.79,175.76,175.75,3.50283346]
[1762160384732,12.08,175.76,175.75,3.50283346]
[1762160385123,12.79,175.76,175.75,3.50283346]
[1762160385533,12.08,175.76,175.75,3.50283346]
[1762160386043,12.79,175.76,175.74,20.592]
[1762160386228,0.71,175.75,175.74,24.09483346]
[1762160386429,0.71,175.75,175.74,20.592]
[1762160386625,4.21283346,175.75,175.68,3.50283346]
[1762160386938,4.21283346,175.74,175.69,3.50283346]
[1762160387440,0.71,175.73,175.69,3.50283346]
[1762160387639,0.71,175.73,175.68,20.592]
[1762160387828,0.71,175.73,175.69,3.50283346]
[1762160388143,4.21283346,175.73,175.68,20.592]
[1762160388532,0.71,175.72,175.68,20.592]
[1762160389162,0.71,175.72,175.7,20.592]
[1762160389453,0.71,175.75,175.72,20.592]
[1762160389754,12.06,175.76,175.72,24.09483346]
[1762160389925,12.77,175.77,175.72,24.09483346]
[1762160390417,12.06,175.77,175.73,3.50283346]
[1762160390618,0.71,175.76,175.73,3.50283346]
[1762160390818,12.06,175.77,175.73,3.50283346]
[1762160391060,12.77,175.77,175.73,3.50283346]
[1762160391840,0.71,175.77,175.74,20.592]
[1762160395030,0.71,175.77,175.74,22.83114117]
[1762160396038,0.71,175.77,175.74,20.592]
[1762160397755,0.71,175.77,175.74,22.83114117]
[1762160399039,2.94914117,175.77,175.74,20.592]
[1762160399239,2.94914117,175.77,175.72,20.592]
[1762160399444,2.94914117,175.76,175.74,20.592]
[1762160399826,0.71,175.75,175.74,20.592]
[1762160400026,0.71,175.75,175.72,20.592]
[1762160401744,2.23914117,175.73,175.66,50.0]
[1762160401922,12.06,175.74,175.65,14.29914117]
[1762160402118,10.49882769,175.73,175.65,14.29914117]
[1762160402318,2.23914117,175.7,175.68,20.592]
[1762160402742,0.71,175.69,175.64,14.97914117]
[1762160402952,0.71,175.69,175.67,20.592]
[1762160404179,2.94914117,175.69,175.67,20.592]
[1762160404452,2.94914117,175.69,175.61,50.0]
[1762160404453,2.23914117,175.68,175.62,2.23914117]
[1762160404654,2.94914117,175.68,175.62,2.23914117]
[1762160404839,2.94914117,175.67,175.64,20.592]
[1762160405029,2.23914117,175.65,175.57,2.23914117]
[1762160405358,2.23914117,175.62,175.57,2.23914117]
[1762160405568,2.23914117,175.61,175.56,17.44197025]
[1762160405861,2.23914117,175.59,175.54,3.11914117]
[1762160406054,2.23914117,175.59,175.56,20.592]
[1762160406235,0.71,175.58,175.56,20.592]
[1762160406554,2.94914117,175.58,175.56,20.592]
[1762160406856,0.71,175.57,175.54,0.2]
[1762160407155,2.23914117,175.56,175.54,0.2]
[1762160407454,12.75,175.57,175.54,0.2]
[1762160407830,0.71,175.56,175.54,0.2]
[1762160409535,0.71,175.56,175.54,2.43914117]
[1762160409735,0.71,175.56,175.54,0.2]
[1762160409960,0.71,175.56,175.54,2.43914117]
[1762160410147,0.71,175.56,175.54,0.2]
[1762160410341,0.71,175.56,175.54,2.43914117]
[1762160411559,0.71,175.56,175.54,0.2]
[1762160412436,12.04,175.57,175.55,2.23914117]
[1762160412636,0.71,175.59,175.54,0.2]
[1762160412832,12.04,175.58,175.54,23.03114117]
[1762160413356,2.94914117,175.57,175.54,0.2]
[1762160413539,12.02796886,175.55,175.54,0.2]
[1762160413746,12.73796886,175.55,175.54,0.2]
[1762160415953,22.53882769,175.55,175.54,0.2]
[1762160417055,12.75,175.55,175.54,0.2]
[1762160417573,22.53882769,175.55,175.54,0.2]
[1762160418861,6.18560553,175.76,175.54,0.2]
[1762160418862,0.71,175.57,175.54,0.2]
[1762160419195,9.78882769,175.59,175.56,2.23914117]
[1762160419484,10.73,175.58,175.57,2.23914117]
[1762160419682,10.02,175.58,175.57,2.23914117]
[1762160420257,0.71,175.63,175.57,2.91914117]
[1762160420462,12.04,175.62,175.6,26.3030457]
[1762160420950,12.75,175.62,175.6,26.3030457]
[1762160421154,12.75,175.62,175.58,20.592]
[1762160421461,12.75,175.62,175.61,5.7110457]
[1762160421665,0.71,175.64,175.61,5.7110457]
[1762160421989,0.71,175.64,175.62,5.7110457]
[1762160422156,12.04,175.63,175.62,5.7110457]
[1762160422654,12.04,175.63,175.6,5.7110457]
[1762160422860,12.75,175.63,175.6,5.7110457]
[1762160423265,0.71,175.67,175.61,5.7110457]
[1762160423468,5.7110457,175.7,175.65,5.7110457]
[1762160423779,12.75,175.69,175.65,5.7110457]
[1762160423977,5.7110457,175.67,175.62,5.7110457]
[1762160424160,5.7110457,175.66,175.64,20.592]
[1762160424362,17.7510457,175.65,175.64,20.592]
[1762160424678,17.7510457,175.65,175.61,20.592]
[1762160424981,0.71,175.64,175.61,20.592]
[1762160425475,17.7510457,175.65,175.6,26.3030457]
[1762160425860,18.4610457,175.65,175.6,26.3030457]
[1762160426062,0.71,175.64,175.6,26.3030457]
[1762160426261,0.71,175.64,175.6,20.592]
[1762160426687,17.7510457,175.65,175.6,27.0130457]
[1762160426879,12.72,175.65,175.6,27.0130457]
[1762160427262,12.04,175.65,175.6,26.3030457]
[1762160427477,0.68,175.64,175.6,26.3030457]
[1762160429378,17.7510457,175.65,175.6,26.3030457]
[1762160429379,17.7510457,175.65,175.6,27.0130457]
[1762160429580,17.7510457,175.65,175.61,6.4210457]
[1762160429581,12.04,175.65,175.61,6.4210457]
[1762160429770,0.68,175.67,175.65,20.592]
[1762160430077,0.68,175.69,175.65,20.592]
[1762160430252,0.68,175.72,175.67,26.3030457]
[1762160430451,12.02,175.71,175.68,26.3030457]
[1762160430655,12.02,175.71,175.68,20.592]
[1762160430881,0.68,175.7,175.68,20.592]
[1762160431189,12.02,175.71,175.68,20.592]
[1762160431361,12.02,175.71,175.7,20.592]
[1762160431988,12.7,175.71,175.7,20.592]
[1762160432683,12.7,175.71,175.64,62.02]
[1762160432684,18.4110457,175.71,175.69,20.592]
[1762160432892,0.68,175.7,175.69,20.592]
[1762160433064,12.02,175.71,175.69,20.592]
[1762160433257,12.02,175.71,175.68,26.3030457]
[1762160433452,12.02,175.71,175.7,5.7110457]
[1762160434263,12.02,175.71,175.69,5.7110457]
[1762160434466,12.02,175.71,175.69,20.592]
[1762160434673,0.68,175.7,175.69,20.592]
[1762160434983,17.7310457,175.71,175.69,20.592]
[1762160435296,18.4110457,175.71,175.69,20.592]
[1762160435458,0.68,175.7,175.69,20.592]
[1762160436169,0.68,175.7,175.63,112.02]
[1762160436170,16.17987339,175.7,175.63,5.7110457]
[1762160436359,5.7110457,175.68,175.63,5.7110457]
[1762160436557,12.02,175.68,175.67,20.592]
[1762160436971,12.7,175.68,175.67,20.592]
[1762160437471,12.02,175.68,175.64,26.3030457]
[1762160437672,12.02,175.68,175.64,27.0130457]
[1762160438078,12.7,175.68,175.64,26.3030457]
[1762160438282,12.02,175.68,175.64,26.3030457]
[1762160438603,12.02,175.68,175.64,27.0130457]
[1762160439689,12.7,175.68,175.64,26.3030457]
[1762160440392,12.02,175.68,175.64,27.0130457]
[1762160442074,12.02,175.68,175.66,5.7110457]
[1762160442988,12.02,175.68,175.65,21.302]
[1762160443193,12.02,175.68,175.65,26.3030457]
[1762160443573,12.02,175.68,175.65,20.592]
[1762160444102,0.68,175.68,175.65,20.592]
[1762160444473,2.92147208,175.71,175.68,20.592]
[1762160444798,12.68,175.7,175.68,20.592]
[1762160445182,12.0,175.69,175.66,20.592]
[1762160446001,12.0,175.69,175.68,2.24147208]
[1762160446177,12.0,175.69,175.68,22.83347208]
[1762160447181,12.0,175.69,175.68,23.54347208]
[1762160447777,12.0,175.72,175.68,23.54347208]
[1762160447986,12.0,175.72,175.69,22.83347208]
[1762160449587,12.0,175.72,175.69,23.54347208]
[1762160449782,12.0,175.72,175.69,22.83347208]
[1762160450285,12.68,175.72,175.69,22.83347208]
[1762160450499,12.0,175.72,175.69,22.83347208]
[1762160451108,12.0,175.72,175.71,20.592]
[1762160451279,0.68,175.75,175.7,2.95147208]
[1762160451480,12.0,175.74,175.7,2.95147208]
[1762160451987,12.68,175.74,175.7,2.95147208]
[1762160452216,12.68,175.74,175.7,2.24147208]
[1762160452805,0.68,175.73,175.69,20.592]
[1762160453306,0.68,175.73,175.69,22.83347208]
[1762160455305,0.68,175.73,175.69,20.592]
[1762160455511,2.24147208,175.7,175.65,14.22147208]
[1762160455716,2.92147208,175.73,175.68,20.592]
[1762160455921,12.0,175.74,175.69,2.24147208]
[1762160456082,0.68,175.73,175.7,20.592]
[1762160456283,0.68,175.73,175.7,22.83347208]
[1762160456590,0.68,175.73,175.7,20.592]
[1762160457506,0.72,175.78,175.72,74.09232859]
[1762160457816,0.72,175.83,175.77,3.50032859]
[1762160458122,11.98,175.82,175.79,3.50032859]
[1762160458524,12.7,175.82,175.79,3.50032859]
[1762160459005,11.98,175.82,175.79,3.50032859]
[1762160459196,0.72,175.81,175.79,3.50032859]
[1762160459594,0.72,175.81,175.78,3.50032859]
[1762160460188,0.72,175.81,175.75,20.592]
[1762160460399,4.22032859,175.81,175.76,20.592]
[1762160460600,4.22032859,175.81,175.76,24.09232859]
[1762160460921,0.72,175.8,175.76,24.09232859]
[1762160461118,12.7,175.82,175.77,20.592]
[1762160461292,0.1,175.84,175.81,24.09232859]
[1762160461491,0.1,175.84,175.83,24.09232859]
[1762160464198,0.1,175.84,175.82,20.592]
[1762160464199,0.82,175.84,175.82,20.592]
[1762160464505,0.82,175.84,175.83,20.592]
[1762160464719,20.73652797,175.84,175.83,20.592]
[1762160464912,12.08,175.84,175.81,7.93652797]
[1762160465111,12.08,175.84,175.82,7.93652797]
[1762160465430,12.08,175.84,175.8,7.93652797]
[1762160465431,0.72,175.83,175.8,7.93652797]
[1762160465597,0.72,175.83,175.82,20.592]
[1762160466096,0.72,175.83,175.79,28.52852797]
[1762160466808,0.72,175.83,175.82,20.592]
[1762160467016,12.08,175.84,175.83,20.592]
[1762160467609,12.08,175.84,175.83,7.93652797]
[1762160467995,0.1,175.84,175.83,7.93652797]
[1762160468197,0.1,175.84,175.83,8.63652797]
[1762160468499,0.1,175.92,175.87,20.592]
[1762160468827,0.1,175.92,175.91,7.93652797]
[1762160470799,0.1,175.92,175.76,15.72804703]
[1762160470800,0.82,175.92,175.89,20.592]
[1762160471007,0.82,175.92,175.89,28.52852797]
[1762160471235,0.1,175.92,175.91,7.93652797]
[1762160472237,0.1,175.92,175.91,29.03852797]
[1762160472406,0.1,175.92,175.91,8.44652797]
[1762160474153,0.1,175.92,175.91,58.44652797]
[1762160474446,0.1,175.92,175.91,116.95152845]
[1762160474638,0.1,175.92,175.91,116.38305594]
[1762160477326,0.1,175.96,175.95,7.93652797]
[1762160477638,0.1,175.96,175.95,70.46487124]
[1762160477948,30.641831,176.0,175.98,70.592]
[1762160478130,30.641831,176.0,175.99,19.89652797]
[1762160478322,30.641831,176.0,175.99,20.40652797]
[1762160479315,30.641831,176.0,175.99,70.40652797]
[1762160480628,30.641831,176.0,175.99,50.51]
[1762160480951,30.641831,176.0,175.99,58.44652797]
[1762160481115,30.641831,176.0,175.99,69.87652797]
[1762160481826,30.641831,176.0,175.99,57.93652797]
[1762160482030,31.361831,176.0,175.99,28.52852797]
[1762160482227,30.641831,176.0,175.99,28.52852797]
[1762160482732,31.361831,176.0,175.99,28.52852797]
[1762160482919,30.641831,176.0,175.99,28.52852797]
[1762160483625,31.361831,176.0,175.99,28.52852797]
[1762160483951,31.361831,176.0,175.91,50.0]
[1762160484252,20.59652797,175.99,175.89,50.51]
[1762160484428,7.93652797,175.95,175.9,7.93652797]
[1762160484619,19.87652797,175.95,175.93,20.592]
[1762160484823,18.44535566,175.94,175.89,7.93652797]
[1762160485038,10.50882769,175.94,175.9,7.93652797]
[1762160485345,0.72,175.93,175.88,7.93652797]
[1762160485544,0.72,175.93,175.89,7.93652797]
[1762160485750,0.72,175.93,175.9,20.592]
[1762160486124,0.72,175.93,175.89,7.93652797]
[1762160486463,0.72,175.93,175.85,61.94]
[1762160486464,0.72,175.93,175.9,7.93652797]
[1762160486626,0.72,175.93,175.86,50.0]
[1762160486952,0.72,175.93,175.84,7.93652797]
[1762160486953,7.93652797,175.9,175.84,7.93652797]
[1762160487155,11.94,175.89,175.87,20.592]
[1762160487361,0.68,175.88,175.87,20.592]
[1762160487659,0.68,175.88,175.85,28.52852797]
[1762160487823,8.61652797,175.88,175.82,7.93652797]
[1762160488024,8.61652797,175.88,175.86,20.592]
[1762160488025,0.68,175.88,175.86,20.592]
[1762160488325,0.68,175.87,175.86,20.592]
[1762160488865,8.61652797,175.87,175.77,50.0]
[1762160489024,8.61652797,175.87,175.8,7.93652797]
[1762160489025,17.72535566,175.86,175.8,7.93652797]
[1762160489222,11.94,175.85,175.83,20.592]
[1762160489441,12.62,175.85,175.84,20.592]
[1762160489651,0.68,175.88,175.84,28.52852797]
[1762160489954,21.72882769,175.89,175.85,7.93652797]
[1762160490139,0.68,175.88,175.85,7.93652797]
[1762160491356,21.72882769,175.89,175.86,7.93652797]
[1762160491567,11.94,175.89,175.88,7.93652797]
[1762160491936,12.62,175.89,175.88,7.93652797]
[1762160492650,12.62,175.89,175.86,7.93652797]
[1762160492841,0.68,175.88,175.86,7.93652797]
[1762160493262,0.68,175.88,175.83,7.93652797]
[1762160493443,9.78882769,175.87,175.85,20.592]
[1762160493930,0.68,175.86,175.85,20.592]
[1762160494129,0.68,175.86,175.81,7.93652797]
[1762160494360,11.94,175.85,175.84,20.592]
[1762160494748,12.62,175.85,175.84,20.592]
[1762160495738,9.78882769,175.84,175.76,11.94]
[1762160496035,9.78882769,175.82,175.77,7.93652797]
[1762160496236,9.78882769,175.8,175.7,50.51]
[1762160496531,9.78882769,175.8,175.74,7.93652797]
[1762160496532,17.72535566,175.8,175.74,7.93652797]
[1762160496735,17.72535566,175.8,175.75,28.52852797]
[1762160496736,0.68,175.79,175.75,28.52852797]
[1762160497039,0.68,175.79,175.76,7.93652797]
[1762160497446,0.68,175.79,175.75,7.93652797]
[1762160498346,0.68,175.79,175.74,20.592]
[1762160498548,0.68,175.79,175.75,7.93652797]
[1762160499066,11.94,175.78,175.74,28.52852797]
[1762160499574,0.68,175.77,175.74,28.52852797]
[1762160499886,0.68,175.77,175.75,7.93652797]
[1762160500651,0.68,175.77,175.76,7.93652797]
[1762160500861,11.94,175.78,175.76,7.93652797]
[1762160501174,11.94,175.78,175.77,7.93652797]
[1762160501348,11.94,175.78,175.76,7.93652797]
[1762160501554,0.68,175.77,175.74,20.592]
[1762160501757,8.61652797,175.77,175.71,7.93652797]
[1762160501959,8.61652797,175.77,175.74,20.592]
[1762160502266,0.68,175.76,175.72,7.93652797]
[1762160502570,11.94,175.78,175.75,7.93652797]
[1762160502875,0.68,175.77,175.76,7.93652797]
[1762160503059,0.68,175.77,175.75,7.93652797]
[1762160504848,0.68,175.77,175.74,7.93652797]
[1762160505050,17.72535566,175.76,175.74,20.592]
[1762160505462,0.68,175.75,175.74,20.592]
[1762160505672,0.68,175.77,175.74,7.93652797]
[1762160505869,0.68,175.77,175.75,7.93652797]
[1762160506073,0.68,175.79,175.76,28.52852797]
[1762160506277,0.68,175.79,175.77,7.93652797]
[1762160506464,0.68,175.79,175.76,20.592]
[1762160506465,11.94,175.8,175.78,28.52852797]
[1762160506657,11.94,175.8,175.79,7.93652797]
[1762160506976,12.62,175.8,175.79,7.93652797]
[1762160507166,11.94,175.8,175.79,7.93652797]
[1762160507366,0.68,175.86,175.82,20.592]
[1762160507558,12.62,175.85,175.82,7.93652797]
[1762160507959,0.68,175.84,175.82,7.93652797]
[1762160509653,0.68,175.84,175.81,7.93652797]
[1762160510479,0.68,175.84,175.82,7.93652797]
[1762160511471,0.68,175.84,175.8,7.93652797]
[1762160511879,0.68,175.84,175.83,20.592]